Cogmind - Beta 15 @@@ ROGUE MODE // 2025.06.28 @ 22:02:04 Player: pyroperro Result: Destroyed by H-61 Shepherd with Heavy Assault Cannon Performance ------------- Evolutions (4) 2000 Regions Visited (7) 1400 Robots Destroyed (48) 240 Value Destroyed (1233) 1233 Prototype IDs (4) 80 Alien Tech Used (0) 0 Bonus (-29) -29 TOTAL SCORE: 4924 Bonus ------- Friendly Fire -29 Cogmind --------- Core Integrity 0/850 Matter 279/300 Energy 100/100 System Corruption 1% Temperature Cool (0) Movement Core (50) Location -6/Factory Parts ------- > --- POWER (1) -------- (None) > --- PROPULSION (6) --- (None) > --- UTILITY (5) ------ Enhanced Optical Array Advanced Terrain Scan Processor Makeshift Hacking Suite > --- WEAPON (3) ------- (None) > --- INVENTORY (5) ---- Enhanced Nuclear Core VTOL Module Authchip [Propulsion] Advanced Assault Cannon Subdweller Shrapnel Launcher Peak State ------------ > --- POWER ------------ F-cell Engine > --- PROPULSION ------- VTOL Module VTOL Module VTOL Module VTOL Module VTOL Module Makeshift Flight Unit > --- UTILITY ---------- Advanced Visual Processing Unit Advanced Terrain Scan Processor Core Analyzer Transmission Jammer Makeshift Hacking Suite > --- WEAPON ----------- Advanced Assault Cannon Power Maul Great Axe > --- INVENTORY -------- Enhanced Nuclear Core Makeshift Power Source Armored Wheel Subdweller Shrapnel Launcher [Rating: 52] Favorites ----------- Power Light Ion Engine Engine Light Ion Engine Power Core Enhanced Nuclear Core Propulsion Armored Wheel Treads Light Treads Wheel Armored Wheel Hover Unit Hover Unit Flight Unit VTOL Module Utility Large Storage Unit Device Transmission Jammer Storage Large Storage Unit Processor Advanced Terrain Scan Processor Hackware Makeshift Hacking Suite Protection Scrap Shield Weapon Beamcaster Energy Gun Beamcaster Energy Cannon Subdweller Beam Cannon Ballistic Gun Light Assault Rifle Ballistic Cannon Advanced Assault Cannon Launcher Grenade Launcher Impact Weapon Power Maul Slashing Weapon Great Axe Build | -11 -10 -10 -9 -7 -7 -7 -6 ------- Run | Yrd Mat Sub Rec Fac Low Low Fac Slots Evolved 8 | . . . . 6 . . 2 Power . | . . . . . . . . Propulsion 4 | . . . . 3 . . 1 Utility 3 | . . . . 2 . . 1 Weapon 1 | . . . . 1 . . . Parts Attached 66 | 8 6 10 1 24 . . 17 Power 8 | 1 1 1 . 2 . . 3 Engine 7 | 1 1 1 . 1 . . 3 Core 1 | . . . . 1 . . . Reactor . | . . . . . . . . Propulsion 28 | 4 2 3 . 12 . . 7 Treads 2 | 2 . . . . . . . Leg . | . . . . . . . . Wheel 14 | 2 2 3 . 6 . . 1 Hover 6 | . . . . 6 . . . Flight 6 | . . . . . . . 6 Utility 12 | 1 1 2 1 3 . . 4 Device 2 | . . . . 1 . . 1 Storage 2 | 1 1 . . . . . . Processor 6 | . . 1 1 2 . . 2 Hackware 1 | . . . . . . . 1 Protection 1 | . . 1 . . . . . Artifact . | . . . . . . . . Weapon 18 | 2 2 4 . 7 . . 3 Energy Gun 8 | 1 . 3 . 4 . . . Energy Cannon 1 | . . 1 . . . . . Ballistic Gun 3 | 1 1 . . 1 . . . Ballistic Cannon 2 | . . . . 2 . . . Launcher 2 | . 1 . . . . . 1 Special Weapon . | . . . . . . . . Impact Weapon 1 | . . . . . . . 1 Slashing Weapon 1 | . . . . . . . 1 Piercing Weapon . | . . . . . . . . Special Melee Weapon . | . . . . . . . . Unidentified Prototypes 4 | . . . . 3 . . 1 Parts Lost 21 | . 3 4 . 2 . . 12 Power 1 | . . . . . . . 1 Propulsion 9 | . . 1 . 2 . . 6 Utility 4 | . . 1 . . . . 3 Weapon 7 | . 3 2 . . . . 2 Highest Loss Streak 10 | . 3 2 . 1 . . 10 To Critical Strikes . | . . . . . . . . Average Backups 8 | 1 3 4 10 10 14 15 5 Power 1 | . 1 1 1 1 1 1 1 Propulsion 3 | . 1 1 5 3 6 7 1 Utility 2 | . . 1 1 2 3 4 1 Weapon 1 | . . . 2 2 3 3 1 Tool/Special . | . . . . . . . . Unused Backups 9 | . . 1 . 5 2 . 1 Power 2 | . . 1 . . 1 . . Propulsion 2 | . . . . 1 1 . . Utility 2 | . . . . 1 . . 1 Weapon 3 | . . . . 3 . . . Tool/Special . | . . . . . . . . Average Slot Usage (%) 89 | . 76 80 100 90 100 100 82 Engine 8 | . 14 14 14 5 . . 5 Core 1 | . . . . 1 7 7 . Wheel 26 | . 28 27 28 21 38 38 1 Hover 2 | . . . . 14 . . . Flight 2 | . . . . . . . 30 Device 2 | . . . . 3 7 7 3 Storage 8 | . 14 4 14 7 7 7 . Processor 9 | . . 3 14 11 15 15 19 Protection 1 | . . 5 . . . . . Energy Gun 15 | . 10 17 28 15 15 15 . Energy Cannon 1 | . . 5 . . . . . Ballistic Gun 1 | . 5 . . . . . . Ballistic Cannon 2 | . . . . 5 7 7 1 Peak Build Rating 52 | 6 7 22 23 44 45 45 52 Average Rating 26 | 5 5 12 22 35 44 44 44 On Entrance 23 | . 6 5 22 23 44 45 45 Naked Turns . | . . . . . . . . Heaviest Build 46 | 11 27 39 39 46 43 44 44 Greatest Support 64 | 40 32 36 36 64 60 60 60 Greatest Overweight (x) 5 | 3 . 1 1 2 . . 5 Average Overweight (x) . | . . . 1 . . . . Largest Inventory Capacity 15 | 8 15 15 15 15 15 15 15 Average Capacity 12 | 7 13 8 15 12 15 15 5 Most Carried 15 | 2 6 6 14 15 15 15 15 Average Carried 8 | 1 3 4 10 10 14 14 5 Final Capacity 15 | 8 15 15 15 15 15 15 5 Final Carried 15 | 1 4 5 14 14 15 15 5 Class Distribution -------------------- 38% | Skirmisher 28% | Mutant 19% | Scavenger-Mutant 6% | Scavenger-Sprinter 6% | Subdweller-Mutant Dominant Class ---------------- Mutant | -10/Materials Mutant | -10/Subcaves Scavenger-Mutant | -9/Recycling Skirmisher | -7/Factory Skirmisher | -7/Lower Caves Skirmisher | -7/Lower Caves Scavenger-Sprinter | -6/Factory Resources | -11 -10 -10 -9 -7 -7 -7 -6 ----------- Run | Yrd Mat Sub Rec Fac Low Low Fac Matter Collected 1298 | 222 213 117 10 441 50 76 169 Remotely . | . . . . . . . . Salvage Created 1342 | . 283 203 . 526 63 82 185 Parts 73 | . 19 13 . 30 4 1 6 Haulers Intercepted 3 | . 1 . . 1 . . 1 Recyclers Shooed 3 | . 3 . . . . . . Parts Field Recycled . | . . . . . . . . Retrieved Matter . | . . . . . . . . Parts Self-Destructed 8 | . . 4 . . 3 1 . Prevented . | . . . . . . . . Kills | -11 -10 -10 -9 -7 -7 -7 -6 ------- Run | Yrd Mat Sub Rec Fac Low Low Fac Combat Hostiles Destroyed 41 | . 12 6 . 12 3 4 4 Melee 1 | . . . . . . . 1 Guns 18 | . 4 3 . 4 3 4 . Cannons 10 | . . 2 . 8 . . . AOE 12 | . 8 1 . . . . 3 Classes Destroyed 9 | . 3 1 . 4 . . 1 Worker 3 | . . . . 3 . . . Builder 1 | . . . . 1 . . . Hauler 3 | . 1 . . 1 . . 1 Swarmer 27 | . 8 2 . 7 3 4 3 Grunt 7 | . 4 . . 3 . . . Sentry 1 | . . . . 1 . . . Hunter 1 | . . . . . . . 1 Programmer 1 | . . . . 1 . . . Subdweller 4 | . . 4 . . . . . Best Kill Streak 5 | . 4 2 . 5 3 3 3 Combat Bots Only 4 | . 4 2 . 4 3 3 3 Max Kills in Single Turn 2 | . 2 1 . 2 1 1 2 Gunslinging . | . . . . . . . . Exploded 2 | . 2 1 . . . . 2 Melee 1 | . . . . . . . 1 Uniques/NPCs Destroyed . | . . . . . . . . Combat | -11 -10 -10 -9 -7 -7 -7 -6 -------- Run | Yrd Mat Sub Rec Fac Low Low Fac Hostile Shots Fired 352 | . 33 39 . 75 4 25 176 Missed 110 | . 13 11 . 19 2 8 57 Hits 242 | . 20 28 . 56 2 17 119 Projectile 242 | . 20 28 . 56 2 17 119 AOE 3 | . . 3 . . . . . Critical Strikes 6 | . . 3 . 2 . . 1 Damage Taken 3677 | . 345 661 2 816 31 258 1564 Core 1364 | . 43 171 . 236 . 17 897 Absorbed by Shields . | . . . . . . . . Core Remaining (%) 59 | 100 . . 14 . . 63 . Volleys Fired 110 | 1 41 21 . 30 4 11 2 Largest 3 | 2 2 2 . 3 3 3 1 Hottest 205 | 60 60 140 . 205 80 175 40 Shots Fired 219 | 2 50 30 . 89 13 33 2 Gun 155 | 2 42 17 . 63 9 22 . Cannon 54 | . . 13 . 26 4 11 . Launcher 10 | . 8 . . . . . 2 Special . | . . . . . . . . Kinetic 65 | 1 21 . . 26 4 11 2 Thermal 102 | . . 27 . 44 9 22 . Explosive 8 | . 8 . . . . . . Electromagnetic 44 | 1 21 3 . 19 . . . Robot Hit Streak 21 | 1 12 21 . 11 3 12 3 Robot Miss Streak 6 | 1 6 2 . 6 1 4 . Penetration Max . | . . . . . . . . Secondary Targets . | . . . . . . . . Shots Hit Robots 126 | 1 31 19 . 48 5 16 6 Core Hits 63 | . 16 7 . 24 3 4 9 Critical Kills . | . . . . . . . . Critical Parts Destroyed 1 | . . . . . . . 1 Critical Strikes 13 | . . 2 . 7 . 3 1 Burn 9 | . . 1 . 6 . 2 . Destroy 1 | . . 1 . . . . . Blast 2 | . . . . 1 . 1 . Smash 1 | . . . . . . . 1 Melee Attacks 18 | . . . . . . . 18 Impact 13 | . . . . . . . 13 Slashing 5 | . . . . . . . 5 Piercing . | . . . . . . . . Sneak Attacks 1 | . . . . . . . 1 Combat Hostiles . | . . . . . . . . Follow-up Attacks . | . . . . . . . . Damage Inflicted 3579 | 10 803 484 4 1204 104 367 603 Guns 1623 | 10 350 187 . 722 76 278 . Cannons 816 | . . 248 . 451 28 89 . Explosions 879 | . 453 49 . . . . 377 Melee 226 | . . . . . . . 226 Ramming 35 | . . . 4 31 . . . Kinetic 1050 | 10 95 . . 451 28 89 377 Thermal 1491 | . 69 449 . 619 76 278 . Explosive 384 | . 384 . . . . . . Electromagnetic 393 | . 255 35 . 103 . . . Impact 153 | . . . . . . . 153 Slashing 73 | . . . . . . . 73 Piercing . | . . . . . . . . Highest Corruption 3 | . . . . 3 3 3 1 Average Corruption 2 | . . . . 2 3 3 1 Corruption Purged . | . . . . . . . . Corruption Blocked . | . . . . . . . . Effects 27 | . . . . 11 16 . . Message Errors 8 | . . . . 4 4 . . Matter Fused 5 | . . . . 2 3 . . Heat Flow Errors 7 | . . . . 4 3 . . Energy Discharges 2 | . . . . . 2 . . Data Loss (minor) 1 | . . . . . 1 . . Data Loss (major) 1 | . . . . . 1 . . Misfires 1 | . . . . . 1 . . Alerts 1 | . . . . . 1 . . Weapon Failures 1 | . . . . 1 . . . Overload Shots 3 | . . . . 2 . 1 . Overflow Damage 169 | . 14 . . . . 23 132 Projectiles 23 | . . . . . . 23 . Explosions 17 | . 14 . . . . . 3 Melee 129 | . . . . . . . 129 Knockbacks 1 | . . . . . 1 . . Impact . | . . . . . . . . Kinetic 1 | . . . . . 1 . . Secondary . | . . . . . . . . Self-Inflicted Damage 197 | . 180 . 2 15 . . . Shots 5 | . 5 . . . . . . Rammed 6 | . . . 2 4 . . . Targets Rammed 6 | . . . 2 4 . . . Kicked . | . . . . . . . . Crushed . | . . . . . . . . Highest Temperature 503 | 20 32 36 . 503 209 308 35 Average Temperature 123 | 15 15 14 . 175 90 147 12 Received Heat Transfer 279 | . 30 60 . 69 . . 120 Effects 9 | . . . . 9 . . . Shutdowns 3 | . . . . 3 . . . Energy Bleed 4 | . . . . 4 . . . Short Circuit 1 | . . . . 1 . . . Damage (core) 1 | . . . . 1 . . . Siege Activations . | . . . . . . . . Martial Activations . | . . . . . . . . Shielding Activations . | . . . . . . . . Robots Disrupted 1 | . . . . 1 . . . Combat Hostiles 1 | . . . . 1 . . . Robots Corrupted 1 | . . . . . . . 1 Combat Hostiles . | . . . . . . . . Parts Fried 3 | . 2 . . 1 . . . Impact Corruptions 2 | . . . . . . . 2 Robots Melted . | . . . . . . . . Combat Hostiles . | . . . . . . . . Parts Melted 1 | . . 1 . . . . . Heat Transferred 3114 | . 150 668 . 1506 148 642 . Parts Sabotaged . | . . . . . . . . Parts Stolen . | . . . . . . . . Parts Stripped . | . . . . . . . . Power Chain Reactions 3 | . 2 1 . . . . . Alert | -11 -10 -10 -9 -7 -7 -7 -6 ------- Run | Yrd Mat Sub Rec Fac Low Low Fac Maximum Alert Level 1 | . . . . . . . 1 Low Security (%) 98 | 100 100 . 100 100 . . 88 Level 1 1 | . . . . . . . 11 Level 2 . | . . . . . . . . Level 3 . | . . . . . . . . Level 4 . | . . . . . . . . Level 5 . | . . . . . . . . High Security . | . . . . . . . . Max Security . | . . . . . . . . Peak Influence 227 | . 196 . 14 123 . . 227 Initial 25 | . . . . . . . 25 Average 59 | . 114 . . 39 . . 126 Influence Increases 1311 | . 357 85 14 312 70 90 383 Destroy 0b10 Robot/C 740 | . 240 40 . 240 60 80 80 Destroy 0b10 Robot/NC 35 | . 5 . . 25 . . 5 Destroy Leader 126 | . 42 . . 42 10 10 22 Successful Hack 14 | . . . 14 . . . . Disable Machine 45 | . 30 . . . . . 15 Destroy Structure 66 | . 40 . . 5 . . 21 Partial Spotted 45 | . . . . . . . 45 Lose Combat Pursuer 240 | . . 45 . . . . 195 Influence Decreases 1193 | . 316 126 14 254 128 50 305 Entered New Map 58 | . . 21 . . 22 . 15 Time Decay 975 | . 286 105 14 244 106 50 170 Lost Part 160 | . 30 . . 10 . . 120 Squads Dispatched 14 | . 2 . . 6 . . 6 Investigation 6 | . 1 . . 3 . . 2 Extermination 2 | . . . . 1 . . 1 Reinforcement 6 | . 1 . . 2 . . 3 Assault . | . . . . . . . . Garrison . | . . . . . . . . Intercept . | . . . . . . . . Searches Triggered . | . . . . . . . . Construction Impeded . | . . . . . . . . Haulers Reinforced 2 | . . . . 2 . . . Active Scanning Responses . | . . . . . . . . Cargo Convoy Interrupts . | . . . . . . . . Stealth | -11 -10 -10 -9 -7 -7 -7 -6 --------- Run | Yrd Mat Sub Rec Fac Low Low Fac Distress Signals 3 | . 1 . . . . . 2 Communications Jammed 2 | . . . . 2 . . . Distress Signals 2 | . . . . 2 . . . Times Spotted 94 | . 21 24 . 15 2 4 28 Peak Tracking Total 10 | . 4 4 . 4 1 2 10 Tactical Retreats 7 | . . 1 . . . . 6 Traps | -11 -10 -10 -9 -7 -7 -7 -6 ------- Run | Yrd Mat Sub Rec Fac Low Low Fac Traps Triggered 2 | . 1 . . . . . 1 Indirectly . | . . . . . . . . Trap Hack Attempts . | . . . . . . . . Triggered . | . . . . . . . . Disarmed . | . . . . . . . . Reprogrammed . | . . . . . . . . Reused . | . . . . . . . . Traps Extracted . | . . . . . . . . Installed . | . . . . . . . . Triggered . | . . . . . . . . Machines | -11 -10 -10 -9 -7 -7 -7 -6 ---------- Run | Yrd Mat Sub Rec Fac Low Low Fac Machines Disabled 4 | . 2 1 . . . . 1 Max in Single Turn 2 | . 2 1 . . . . 1 Machines Repaired . | . . . . . . . . Machines Dismantled . | . . . . . . . . Machines Sabotaged . | . . . . . . . . Overloaded Fab Kills . | . . . . . . . . Hacking | -11 -10 -10 -9 -7 -7 -7 -6 --------- Run | Yrd Mat Sub Rec Fac Low Low Fac Machines Accessed 12 | . 2 . 2 5 . . 3 Terminals 9 | . 2 . 2 5 . . . Fabricators 2 | . . . . . . . 2 Repair Stations . | . . . . . . . . Recycling Units . | . . . . . . . . Scanalyzers 1 | . . . . . . . 1 Garrison Access . | . . . . . . . . Total Hacks 29 | . 5 . 3 13 . . 8 Successful 13 | . 2 . 3 4 . . 4 Failed 16 | . 3 . . 9 . . 4 Catastrophic 4 | . . . . 3 . . 1 Database Lockouts . | . . . . . . . . Manual . | . . . . . . . . Terminals 21 | . 5 . 3 13 . . . Fabricators 6 | . . . . . . . 6 Repair Stations . | . . . . . . . . Recycling Units . | . . . . . . . . Scanalyzers 2 | . . . . . . . 2 Garrison Access . | . . . . . . . . Terminal Hacks 9 | . 2 . 3 4 . . . Record 2 | . 1 . . 1 . . . Open DSF 1 | . . . . 1 . . . Alert Level 1 | . . . 1 . . . . Dispatch Records 2 | . . . 1 1 . . . Hauler Manifests 1 | . 1 . . . . . . Zone Layout 2 | . . . 1 1 . . . Fabricator Hacks 2 | . . . . . . . 2 Load Schematic 2 | . . . . . . . 2 Repair Station Hacks . | . . . . . . . . Recycling Unit Hacks . | . . . . . . . . Scanalyzer 2 | . . . . . . . 2 Insert Component 1 | . . . . . . . 1 Analyze 1 | . . . . . . . 1 Garrison Access Hacks . | . . . . . . . . Unauthorized Hacks . | . . . . . . . . Terminals . | . . . . . . . . Fabricators . | . . . . . . . . Repair Stations . | . . . . . . . . Recycling Units . | . . . . . . . . Scanalyzers . | . . . . . . . . Garrison Access . | . . . . . . . . Data Cores Recovered . | . . . . . . . . Used . | . . . . . . . . Hacking Detections 9 | . 1 . 1 4 . . 3 Full Trace Events 5 | . . . . 3 . . 2 Feedback Events 1 | . . . . 1 . . . Corruption 1 | . . . . 1 . . . Feedback Blocked . | . . . . . . . . Robot Schematics Acquired . | . . . . . . . . Robots Built . | . . . . . . . . Authchips . | . . . . . . . . Time . | . . . . . . . . Total Robot Build Rating . | . . . . . . . . Part Schematics Acquired 1 | . . . . . . . 1 Parts Built . | . . . . . . . . Authchips . | . . . . . . . . Time . | . . . . . . . . Total Part Build Rating . | . . . . . . . . Parts Repaired . | . . . . . . . . Time . | . . . . . . . . Parts Recycled . | . . . . . . . . Recycled Matter . | . . . . . . . . Retrieved Matter . | . . . . . . . . Retrieved Components . | . . . . . . . . Parts Scanalyzed 1 | . . . . . . . 1 Part Schematics Acquired 1 | . . . . . . . 1 Parts Damaged . | . . . . . . . . Bothacking | -11 -10 -10 -9 -7 -7 -7 -6 ------------ Run | Yrd Mat Sub Rec Fac Low Low Fac Used RIF Installer . | . . . . . . . . Robots Hacked . | . . . . . . . . Non-combat . | . . . . . . . . Combat . | . . . . . . . . Robot Hacks Applied . | . . . . . . . . Relay Couplers Released . | . . . . . . . . Fabnet Peak Effective % . | . . . . . . . . Robots Rewired . | . . . . . . . . Allies Hacked . | . . . . . . . . Hacks Repelled . | . . . . . . . . Allies | -11 -10 -10 -9 -7 -7 -7 -6 -------- Run | Yrd Mat Sub Rec Fac Low Low Fac Total Allies . | . . . . . . . . Largest Group . | . . . . . . . . Highest-Rated Group . | . . . . . . . . Highest-Rated Ally . | . . . . . . . . Total Orders . | . . . . . . . . Ally Attacks . | . . . . . . . . Total Damage . | . . . . . . . . Kills . | . . . . . . . . Allies Corrupted . | . . . . . . . . Allies Melted . | . . . . . . . . Intel | -11 -10 -10 -9 -7 -7 -7 -6 ------- Run | Yrd Mat Sub Rec Fac Low Low Fac Active Infowar (turns) 3007 | . . 209 670 812 827 145 344 Optics 2611 | . . . 483 812 827 145 344 Sensors 58 | . . . . . . . 58 Machine Analysis 396 | . . 209 187 . . . . Jamming 1454 | . . . . 439 827 145 43 Robot Analysis Total . | . . . . . . . . Derelict Logs Recovered 3 | . . . . . 3 . . Drone Launches . | . . . . . . . . Drone Recoveries . | . . . . . . . . Exploration | -11 -10 -10 -9 -7 -7 -7 -6 ------------- Run | Yrd Mat Sub Rec Fac Low Low Fac Turns Passed 4517 | 105 730 877 675 812 827 145 346 Spaces Moved 4114 | 69 428 716 559 647 890 113 692 Core 14 | 13 . . . . . . 1 Treads 35 | 35 . . . . . . . Legs . | . . . . . . . . Wheels 3042 | 21 428 716 559 299 890 113 16 Hover 348 | . . . . 348 . . . Flight 675 | . . . . . . . 675 Fastest Speed 23 | 50 80 100 117 44 90 90 23 Average Speed 85 | 127 95 107 117 77 90 90 28 Slowest Speed 300 | 200 100 117 117 130 90 90 300 Overloaded Moves . | . . . . . . . . Propulsion Burnouts . | . . . . . . . . Robots Hopped 3 | . . . . . . . 3 Potential Cave-ins . | . . . . . . . . Cave-ins Triggered . | . . . . . . . . Exploration Rate (%) 42 | 4 71 31 82 20 97 13 18 Regions Visited 7 Branch Regions 4 Pre-discovered Areas 1 | . . . . . 1 . . Known Exits Taken . | . . . . . . . . Unknown Exits Taken 7 | 1 1 1 1 1 1 1 . Scrap Searched 8 | . . 3 . . 3 2 . Spaces Dug 8 | . . . . . . . 8 Terrain Destroyed 90 | . 52 4 . 2 2 3 27 Melee 8 | . . . . . . . 8 Projectile 7 | . . . . 2 2 3 . AOE 75 | . 52 4 . . . . 19 Terrain Rammed . | . . . . . . . . Walls Destroyed . | . . . . . . . . Machines Disabled . | . . . . . . . . Actions | -11 -10 -10 -9 -7 -7 -7 -6 --------- Run | Yrd Mat Sub Rec Fac Low Low Fac Total 4900 | 81 702 794 580 891 909 131 812 Wait 453 | . 218 32 5 143 5 5 45 Move 4101 | 68 427 715 558 646 889 112 686 Hop 3 | . . . . . . . 3 Pick Up 48 | 2 5 5 11 15 6 1 3 Fast Attach 32 | 7 3 5 1 13 . . 3 Attach 25 | 1 1 3 . 7 . . 13 Detach 8 | . . . . 3 . . 5 Swap 22 | . 3 4 . 9 . 1 5 Drop 55 | 2 4 6 3 21 5 1 13 Fire 110 | 1 41 21 . 30 4 11 2 Melee 16 | . . . . . . . 16 Ram 6 | . . . 2 4 . . . Kick . | . . . . . . . . Crush . | . . . . . . . . Escape Stasis 18 | . . . . . . . 18 Rewire . | . . . . . . . . Trap . | . . . . . . . . Miscellaneous 3 | . . 3 . . . . . Route ------- -11/Scrapyard -10/Materials (discovered 4 exits: [*Mat x2] / [*Min] / [*Sub]) -10/Subcaves (discovered 2 exits: [*Mat] / *Rec) -9/Recycling -7/Factory -7/Lower Caves -7/Lower Caves -6/Factory History --------- Turn | Location | Event 29 | -11/Scrapyard | Discovered new exit (range 14) 106 | -11/Scrapyard | Entered Materials 212 | -10/Materials | Discovered new exit (range 10) 272 | -10/Materials | Discovered new exit (range 14) 303 | -10/Materials | Build established: Mutant 401 | -10/Materials | Discovered new exit (range 13) 433 | -10/Materials | Lost 3 parts (3w) 824 | -10/Materials | Discovered new exit (range 8) 836 | -10/Materials | Entered Subcaves 837 | -10/Subcaves | Approached by a straggling Scientist 932 | -10/Subcaves | Disturbed a concealed Subdweller 1161 | -10/Subcaves | Ambushed by Subdweller buried in earth 1217 | -10/Subcaves | Ambushed by swarm of Subdwellers 1221 | -10/Subcaves | Ambushed by Subdwellers from Twisted Machinery 1242 | -10/Subcaves | Core integrity fell below 50% 1287 | -10/Subcaves | Discovered new exit (range 13) 1290 | -10/Subcaves | Ambushed by Subdwellers from Twisted Machinery 1341 | -10/Subcaves | Discovered new exit (range 12) 1357 | -10/Subcaves | Lost 3 allies 1430 | -10/Subcaves | A swath of the cavern ceiling suddenly collapsed 1430 | -10/Subcaves | Core integrity fell below 20% 1713 | -10/Subcaves | Entered Recycling 1714 | -9/Recycling | Met a Zionite searching for Scraptown 1813 | -9/Recycling | Build established: Scavenger-Mutant 1850 | -9/Recycling | Discovered new exit (range 8) 2388 | -9/Recycling | Entered Factory 2388 | -7/Factory | Evolved 6 slots: Propulsion x3, Utility x2, Weapon x1 2481 | -7/Factory | Identified exit to DSF 2759 | -7/Factory | Build established: Skirmisher 3158 | -7/Factory | Discovered new exit (range 5) 3200 | -7/Factory | Entered Lower Caves 3454 | -7/Lower Caves | Found DCF Scrap (15 items) 3614 | -7/Lower Caves | Discovered new exit (range 19) 4027 | -7/Lower Caves | Entered another Lower Caves area 4074 | -7/Lower Caves | Discovered new exit (range 8) 4172 | -7/Lower Caves | Entered Factory 4172 | -6/Factory | Evolved 2 slots: Propulsion x1, Utility x1 4512 | -6/Factory | Core integrity fell below 50% 4516 | -6/Factory | Core integrity fell below 20% 4518 | -6/Factory | Destroyed by H-61 Shepherd with Heavy Assault Cannon Last Messages --------------- Imp. Sensor Array destroyed. Arm. Wheel destroyed. Penetrated by Slug. H-66 Slayer destroyed. Penetrated by Slug. Power Maul destroyed. Acquired 67 matter. Slug penetrates Wall. Penetrated by Slug. Core Analyzer destroyed. F-cell Engine destroyed. Great Axe destroyed. Penetrated by Slug. Y-54 Guardian suffers critical hit (Destroy). U-05 Engineer builds a Wall. Door malfunctions. Slug penetrates Wall. Penetrated by Slug. K-01 Serf cleans the TF Node. Penetrated by Slug. Map ----- +----------------------------------------------------+ | ?????????????????????????????????????????????????? | | ?????????????????????????????????????????????????? | | ?????????????????????????????????????????????????? | | ?????????????????????????????????????????????????? | | ?????????????????????????????????????????????????? | | ?????????????????????????????????????????????????? | | ?????????????????????????????????????????????????? | | ??????????????????????????????????##+###?????????? | | ?????????????????????????????????? #####?????? | | ?????????????????????????????????? ??????? | | ?????????????????????????????????? ???????? | | ?????????????????????????????????? ????????? | | ?????????????????????????????????? #?????????? | | ????????????????????????###???????# #??????????? | | ????????????????????????# #???????# #??????????? | | ??????????????????????#######????#" #??????????? | | ??????????????????????# ####### #??????????? | | ??????????????????????# ! ! #??????????? | | ??????????????????????# #??????????? | | ??????????????????????# % #??????????? | | ??????????????????????# uuH###### T###??????????? | | ??????????????????????## Y;###################??? | | ???????????????????????# ; #??? | | ???????????????????????# # #??? | | ??????################## [ # #??? | | ! ##### #[@h# """"""" """"""" #??? | | + """ """ # ! / """"""" """"""" #??? | | ##### ! """"" """"" # %# """"""" """"""" #??? | | ??????# """"" """"" #h #] """"""" """"""" ???? | | ??????# ! # p # ????? | | ??????# """ """ # #################?????? | | ??????# """"" """"" + ##########????????????? | | ??????# """"" """"" # # #????????????? | | ??????# ! # # """ #????????????? | | ??????################## # """ #????????????? | | ???????????????????????# # """ #????????????? | | ???????????????????????# # ############## | | ???????????????????????# # """ ## * | | ???????????????????????# + """ ## """ """ | | ???????????????????????# # """ ## """ """ | | ????????????############ # ## """ """ | | ????????????# ## ########### | | ????????????# """" # #????????# """ """ | | ????????????# """" # #######??# """ """ | | ????????????# """" + " #??# """ """ | | ????????????# """" # k ##### #??# | | ????????????# """" #! ]#???# #??# | | ????????????# """" ###/###???# #??# "Y" | | ????????????#! # #???# #??# """ | | ????????????########### =##### ########/####### | +----------------------------------------------------+ Best States ------------- Heat Dissipation 37 Energy Generation 19 Energy Capacity 500 Matter Stores 300 Matter Capacity 300 Sight Range 22 Robot Scan Range 15 Terrain Scan Density 210 Jamming Range 12 Armor Coverage 800 Evasion (%) 65 Core Analysis 6 Recoil Reduction 2 Offensive Hacking 11 Authchip Count 2 Item Schematics ----------------- Mak. Flight Unit | -6/Factory | Scanalyzed Robot Schematics ------------------ None Fabricated ------------ Nothing Repaired ---------- Nothing Alien Tech Used ----------------- None Achievements -------------- None Challenges ------------ None Game ------ Seed HackingAssemblyClaymores Manual? 0 Play Time 00:59:39 Cumulative 4.5 hours Start 2025.06.28 @ 19:58:29 End 2025.06.28 @ 22:02:04 Sessions 2 Manual Loads 0 Difficulty Rogue Special Mode None Game No. 6 Rogue 6 Adventurer 0 Explorer 0 Win Type - Total 0 Types 0/0/0/0/0/0/0/0/0/0 Lore% 4 Gallery% 9 Achievement% 12 Wizard Run 0 Options --------- Layout 2 ASCII 0 Keyboard 0 Movement Mouse Keybinds 0 Fullscreen 1 Font 24/Smallcaps Map View 50x44 Zoom Use 0% Tactical HUD 0 Map Filters NONE Filters NONE Steam 1 RUN: 995b96b3-4cf7-4d55-802a-fc44ee97b062